bitfinex/quotes_ETHUSD_20241108
["timestamp","ask_amount","ask_price","bid_price","bid_amount"]
[1731025210648,0.7861,2938.6,2937.8,0.8171]
[1731025211862,0.7861,2938.6,2937.9,0.06805936]
[1731025212749,0.12678473,2939.9,2937.9,0.06805936]
[1731025212750,2.4172,2940.7,2938.1,0.01]
[1731025213010,2.4172,2940.7,2938.7,3.0]
[1731025213156,2.4172,2940.7,2939.0,0.01]
[1731025213368,2.4172,2940.7,2938.9,0.01]
[1731025213579,2.4172,2940.7,2938.2,4.91638737]
[1731025213580,2.3502,2940.4,2937.8,0.8371]
[1731025213781,2.3502,2940.4,2937.8,0.8271]
[1731025213965,2.3502,2940.4,2938.0,0.01]
[1731025214171,0.68528538,2940.3,2938.0,0.01]
[1731025214385,3.68528538,2940.3,2938.3,0.01]
[1731025214703,2.3502,2940.4,2938.8,0.01]
[1731025215193,2.3502,2940.4,2938.8,0.50276921]
[1731025215405,2.3502,2940.4,2938.9,0.06803347]
[1731025215615,2.3502,2940.4,2939.1,0.01]
[1731025215765,0.5999,2941.3,2939.2,0.49276921]
[1731025215963,0.5999,2941.1,2939.2,0.49276921]
[1731025216197,0.5999,2941.1,2939.3,0.06802676]
[1731025216592,0.5999,2941.1,2939.2,0.49276921]
[1731025217076,0.5999,2940.7,2939.2,0.49276921]
[1731025217280,0.5999,2940.7,2939.3,0.07802672]
[1731025217477,0.5999,2940.7,2939.5,0.01]
[1731025217811,0.5999,2940.7,2939.6,0.49276921]
[1731025217969,0.5999,2940.7,2939.5,0.01]
[1731025218317,0.5999,2940.7,2939.2,0.01]
[1731025218609,0.5999,2940.7,2939.2,0.07802394]
[1731025218783,0.5999,2940.7,2939.5,0.01]
[1731025218985,0.5999,2940.7,2939.6,0.49276921]
[1731025219319,0.5999,2940.7,2939.6,0.50276921]
[1731025219608,0.5999,2941.8,2940.4,0.01]
[1731025219806,0.5999,2941.8,2940.9,0.01]
[1731025219969,0.5999,2941.8,2940.9,0.49077096]
[1731025220177,0.5999,2941.8,2940.9,0.02]
[1731025220376,0.5999,2941.8,2941.0,0.48077096]
[1731025220805,0.5999,2941.8,2941.1,0.06798391]
[1731025221006,0.5999,2941.8,2941.1,0.54875487]
[1731025221520,0.5999,2941.8,2940.2,0.7583]
[1731025221724,0.5999,2941.8,2940.3,0.01]
[1731025222223,0.5999,2941.8,2940.4,0.01]
[1731025222524,0.5999,2941.8,2940.5,0.01]
[1731025222952,0.5999,2941.8,2940.5,0.49077096]
[1731025223340,0.5999,2941.8,2940.6,0.38077096]
[1731025223649,0.5999,2941.8,2940.8,0.01]
[1731025223818,0.5999,2941.8,2940.9,0.01]
[1731025224024,0.5999,2941.8,2940.9,0.83098452]
[1731025224433,0.5999,2941.8,2941.1,0.01]
[1731025224817,0.5999,2941.8,2941.3,0.01]
[1731025225039,0.5999,2941.8,2941.3,0.07797926]
[1731025225241,0.5999,2941.8,2941.3,0.01]
[1731025225937,0.5999,2942.1,2941.3,0.02]
[1731025226267,0.5999,2942.1,2941.3,0.57874996]
[1731025226424,0.5999,2942.8,2941.7,0.01]
[1731025226634,0.5999,2942.8,2941.6,0.7799]
[1731025226635,0.5999,2942.8,2941.9,0.01]
[1731025226976,0.625,2942.9,2942.1,0.01]
[1731025227268,0.625,2942.9,2942.3,0.01]
[1731025227426,0.625,2942.9,2942.6,0.01]
[1731025227633,0.625,2942.9,2941.7,0.02]
[1731025227872,0.5999,2942.8,2941.7,0.01]
[1731025228932,0.5999,2942.8,2941.3,0.02]
[1731025229177,0.5999,2942.8,2941.4,0.01]
[1731025229375,0.5999,2942.8,2941.7,4.51265377]
[1731025229585,0.625,2942.9,2942.5,0.01]
[1731025229868,0.625,2942.9,2942.5,0.49493763]
[1731025230174,0.625,2942.9,2942.6,0.01]
[1731025230417,0.625,2942.9,2942.5,0.50493763]
[1731025230673,0.625,2942.9,2942.6,0.01]
[1731025230967,0.625,2942.9,2942.5,0.49493763]
[1731025231174,0.625,2942.9,2942.2,3.0]
[1731025231342,0.625,2942.9,2942.3,0.75026538]
[1731025231752,0.625,2942.9,2942.5,0.01]
[1731025232284,0.625,2942.9,2942.3,0.75026538]
[1731025232486,0.625,2942.9,2942.5,0.01]
[1731025232951,0.625,2942.9,2942.5,0.52577096]
[1731025233459,0.625,2942.9,2942.8,0.01]
[1731025233633,0.625,2942.9,2942.8,0.99720301]
[1731025234834,0.625,2942.9,2942.8,5.35556201]
[1731025236343,0.625,2942.9,2942.8,5.90556201]
[1731025236593,0.5999,2944.9,2943.7,0.01]
[1731025236758,0.5999,2944.9,2944.2,0.01]
[1731025236959,0.06727597,2944.8,2944.2,0.01]
[1731025237177,0.5999,2944.9,2944.2,0.01]
[1731025237579,0.5999,2944.9,2943.8,0.54493763]
[1731025238002,0.5999,2944.9,2944.1,0.01]
[1731025238324,0.5999,2944.9,2944.3,0.01]
[1731025239115,0.5999,2944.9,2944.3,0.61284623]
[1731025239917,0.1368828,2945.0,2944.8,0.01]
[1731025240134,0.1368828,2945.0,2944.9,0.53493763]
[1731025240321,0.1368828,2945.0,2944.9,1.83983763]
[1731025240700,0.5999,2946.7,2945.8,0.01]
[1731025240988,0.5999,2946.7,2946.1,0.01]
[1731025241225,0.7417,2947.0,2945.9,0.01]
[1731025241388,0.14919492,2946.6,2945.9,0.01]
[1731025241588,0.7367,2946.5,2945.7,0.01]
[1731025241820,0.79485725,2946.5,2945.7,0.01]
[1731025242466,0.79485725,2946.5,2946.1,0.01]
[1731025242637,0.79485725,2946.5,2946.3,0.01]
[1731025242638,0.05815725,2946.5,2946.3,0.01]
[1731025243056,0.05815725,2946.5,2946.4,4.89123383]
[1731025243283,0.005,2947.0,2946.9,4.51265377]
[1731025243426,0.005,2947.0,2946.9,0.01]
[1731025243625,0.005,2947.0,2946.9,5.06265377]
[1731025243851,15.72445091,2947.1,2946.9,4.51265377]
[1731025244061,15.72445091,2947.1,2947.0,0.01]
[1731025244223,15.72445091,2947.1,2947.0,0.56]
[1731025244434,15.72445091,2947.1,2947.0,1.87006717]
[1731025244768,15.72445091,2947.1,2947.0,0.7691]
[1731025245341,15.72445091,2947.1,2946.8,0.01]
[1731025245342,17.296896,2947.1,2946.8,0.01]
[1731025245838,15.72445091,2947.1,2946.8,0.01]
[1731025246031,15.72445091,2947.1,2946.3,0.01]
[1731025246743,15.72445091,2947.1,2946.1,0.01]
[1731025246956,15.72445091,2947.1,2946.3,0.01]
[1731025247278,15.72445091,2947.1,2946.5,0.01]
[1731025247431,15.72445091,2947.1,2947.0,0.01]
[1731025247636,15.72445091,2947.1,2946.7,0.01]
[1731025247966,16.75436781,2947.1,2946.3,0.7972]
[1731025248127,0.753,2947.0,2946.1,0.01]
[1731025248327,2.42843678,2947.0,2946.6,0.01]
[1731025248579,0.753,2947.0,2946.6,0.01]
[1731025249247,15.72445091,2947.1,2946.6,0.01]
[1731025250178,15.72445091,2947.1,2947.0,4.3604]
[1731025250532,15.72445091,2947.1,2947.0,4.32958051]
[1731025250735,15.72445091,2947.1,2947.0,0.8104]
[1731025251037,15.76956838,2947.1,2947.0,0.8104]
[1731025251334,15.76956838,2947.1,2947.0,1.32958051]
[1731025251751,15.76956838,2947.1,2947.0,4.87958051]
[1731025252478,10.93636838,2947.1,2947.0,4.87958051]
[1731025252781,8.10486838,2947.1,2947.0,4.87958051]
[1731025253342,8.10486838,2947.1,2947.0,5.81628385]
[1731025253565,0.005,2947.6,2947.5,1.3778]
[1731025253877,0.005,2947.6,2947.5,10.30648203]
[1731025254041,0.1368828,2947.9,2947.5,10.30648203]
[1731025254042,0.1368828,2947.9,2947.8,0.8178]
[1731025254380,0.1368828,2947.9,2947.8,5.79698046]
[1731025254588,0.1368828,2947.9,2947.8,6.68445938]
[1731025256186,0.00621136,2948.0,2947.9,4.3751]
[1731025256386,0.01043754,2949.2,2948.7,0.01]
[1731025256536,0.01043754,2949.2,2949.1,0.01]
[1731025256741,0.01043754,2949.2,2948.9,0.01]
[1731025256986,0.01043754,2949.2,2948.5,0.01]
[1731025257152,0.01043754,2949.2,2948.6,0.01]
[1731025257350,0.01043754,2949.2,2949.0,0.01]
[1731025257562,0.01043754,2949.2,2949.0,0.55172146]
[1731025257785,0.01043754,2949.2,2948.8,0.55172146]
[1731025258483,0.01043754,2949.2,2948.9,0.06780778]
[1731025258783,0.01043754,2949.2,2949.0,0.55172146]
[1731025258951,0.01043754,2949.2,2949.1,0.06780149]
[1731025259156,0.01043754,2949.2,2949.1,0.55172146]
[1731025260039,0.01043754,2949.2,2948.8,0.01]
[1731025260241,0.01043754,2949.2,2948.5,0.01]
[1731025260242,0.8187,2949.1,2948.1,0.01]
[1731025260563,0.8187,2949.1,2948.3,0.01]
[1731025260970,0.8187,2949.1,2948.5,0.01]
[1731025261207,0.01043754,2949.2,2948.8,0.01]
[1731025261544,0.01043754,2949.2,2948.6,0.4432546]
[1731025261545,0.03835927,2949.1,2949.0,0.01]
[1731025261741,0.03835927,2949.1,2948.8,0.01]
[1731025261974,0.03835927,2949.1,2948.6,0.4432546]
[1731025261975,0.03835927,2949.1,2949.0,0.01]
[1731025262162,0.01043754,2949.2,2948.6,0.4532546]
[1731025262341,0.01043754,2949.2,2948.2,0.01]
[1731025262547,0.8087,2949.1,2948.2,0.01]
[1731025262952,0.8087,2949.1,2948.7,0.01]
[1731025263156,0.01043754,2949.2,2949.1,0.01]
[1731025263380,0.01043754,2949.2,2949.1,0.47742127]
[1731025263862,0.01043754,2949.2,2949.1,0.50720786]
[1731025264283,0.01043754,2949.2,2948.7,0.01]
[1731025264490,0.80023754,2949.2,2948.7,0.01]
[1731025264857,0.80023754,2949.2,2949.0,0.01]
[1731025265107,0.01043754,2949.2,2949.0,0.01]
[1731025265461,0.01043754,2949.2,2949.1,0.01]
[1731025265663,0.01043754,2949.2,2949.1,1.89591298]
[1731025265874,0.01043754,2949.2,2949.1,2.09328429]
[1731025266276,0.42186675,2950.0,2949.6,0.8329]
[1731025266587,0.42186675,2950.0,2949.6,5.90025613]
[1731025266901,0.42186675,2950.0,2948.8,0.01]
[1731025267079,0.7748,2949.6,2948.8,0.01]
[1731025267274,0.7748,2949.6,2949.0,0.01]
[1731025267794,0.42186675,2950.0,2949.3,0.01]
[1731025268175,0.42186675,2950.0,2949.5,0.01]
[1731025268707,0.42186675,2950.0,2949.6,0.45843015]
[1731025269000,0.42186675,2950.0,2949.6,5.52578628]
[1731025269506,0.42186675,2950.0,2949.6,10.13759566]
[1731025269864,0.73571526,2950.4,2949.6,10.13759566]
[1731025269865,0.01694,2952.9,2952.0,0.5749]
[1731025270101,0.01694,2952.9,2952.4,0.01]
[1731025270402,0.03329302,2952.8,2952.6,0.01]
[1731025270709,0.01694,2952.9,2952.6,0.01]
[1731025270910,0.01694,2952.9,2952.8,0.01]
[1731025271061,0.01694,2952.9,2952.4,4.46265377]
[1731025271260,0.01694,2952.9,2952.1,0.01]
[1731025271459,0.01694,2952.9,2951.6,0.51323994]
[1731025271687,0.01694,2952.9,2951.6,0.5324066]
[1731025272186,0.01694,2952.9,2952.1,0.01]
[1731025272494,0.01694,2952.9,2952.2,0.55073994]
[1731025272703,0.01694,2952.9,2952.3,0.07771684]
[1731025272913,0.01694,2952.9,2952.4,0.61845636]
[1731025273064,0.01694,2952.9,2952.4,1.13377524]
[1731025273262,0.01694,2952.9,2952.5,0.01]
[1731025274512,0.01694,2952.9,2952.4,4.50265377]
[1731025274798,0.01694,2952.9,2952.3,0.01]
[1731025274962,0.01694,2952.9,2952.1,0.5259066]
[1731025275406,0.01694,2952.9,2952.3,0.01]
[1731025275579,0.01694,2952.9,2952.1,1.06610856]
[1731025275785,0.01694,2952.9,2952.3,1.06610856]
[1731025276096,0.01694,2952.9,2952.4,1.05610856]
[1731025276399,0.01694,2952.9,2952.6,0.01]
[1731025276598,0.01694,2952.9,2952.7,1.05610856]
[1731025276809,0.01694,2952.9,2952.3,0.01]
[1731025277013,0.01694,2952.9,2952.7,0.7967]
[1731025277313,0.01694,2952.9,2952.8,0.53507327]
[1731025277512,0.01694,2952.9,2952.7,0.7967]
[1731025278363,0.01694,2952.9,2952.8,0.50135096]
[1731025278564,0.01694,2952.9,2952.8,0.51135096]
[1731025279381,0.01694,2952.9,2952.8,1.06135096]
[1731025279610,0.01694,2952.9,2952.8,1.24715606]
[1731025279914,0.01694,2952.9,2952.6,0.55051763]
[1731025280204,0.01694,2952.9,2952.8,0.55051763]
[1731025280969,0.01694,2952.9,2952.8,0.54051763]
[1731025281168,0.01694,2952.9,2952.8,1.41872662]
[1731025281366,0.06,2953.0,2952.8,6.31496434]
[1731025281607,0.06,2953.0,2952.9,1.17201406]
[1731025282109,0.06,2953.0,2952.9,1.72201406]
[1731025282321,0.1368828,2953.8,2953.7,4.51265377]
[1731025282613,0.1368828,2953.8,2953.7,0.53861814]
[1731025282776,0.1368828,2953.8,2952.8,0.146883]
[1731025283109,0.1368828,2953.8,2952.8,0.01]
[1731025283305,0.1368828,2953.8,2952.9,0.01]
[1731025283507,0.1368828,2953.8,2953.1,0.01]
[1731025283815,0.1368828,2953.8,2952.9,0.51809314]
[1731025283969,0.1368828,2953.8,2953.1,0.01]
[1731025284169,0.1368828,2953.8,2953.2,0.50809314]
[1731025284674,0.8175,2953.7,2953.0,0.50809314]
[1731025284902,0.8175,2953.4,2952.3,0.01]
[1731025285123,0.8175,2953.4,2952.4,0.47179314]
[1731025285824,0.7738,2952.9,2952.0,0.8175]
[1731025285985,0.01,2952.6,2951.5,0.01]
[1731025286318,0.7816,2952.1,2951.1,0.8175]
[1731025286474,0.7816,2952.1,2951.2,0.01]
[1731025286669,0.7816,2952.1,2951.2,0.42383188]
[1731025286981,0.45068108,2953.8,2951.6,4.51265377]
[1731025286982,0.7816,2953.3,2951.6,4.51265377]
[1731025287184,0.7816,2953.3,2952.3,0.01]
[1731025287491,0.7816,2953.3,2951.7,0.89035875]
[1731025287492,0.7816,2953.3,2951.9,0.01]
[1731025287699,0.7916,2953.0,2951.9,0.4915505]
[1731025287870,0.1368828,2953.8,2951.1,0.40880147]
[1731025287871,0.7816,2952.7,2951.5,0.01]
[1731025288073,0.7816,2952.7,2951.5,0.46849991]
[1731025288299,0.8209,2952.4,2951.5,0.45849991]
[1731025288506,0.8209,2952.4,2951.5,0.46849991]
[1731025288703,0.8209,2952.4,2952.0,0.01]
[1731025289015,0.01,2953.3,2952.0,0.45849991]
[1731025289016,0.8209,2953.2,2952.0,0.45849991]
[1731025289519,0.8209,2953.2,2952.1,0.06772255]
[1731025289683,0.8209,2953.2,2952.0,0.86730138]
[1731025290815,0.8309,2953.2,2952.0,0.45849991]
[1731025291115,0.8309,2953.2,2951.7,0.45849991]
[1731025291116,0.8209,2953.2,2951.7,0.45849991]
[1731025291322,0.8209,2953.2,2951.7,0.8908121]
[1731025291476,0.8209,2953.2,2951.8,0.89396805]
[1731025292315,0.8209,2953.2,2951.8,0.91813471]
[1731025292502,0.8013,2952.8,2951.3,0.7939]
[1731025292710,0.7736,2952.7,2951.5,0.45849991]
[1731025292913,0.7736,2952.0,2950.5,4.50265377]
[1731025293131,0.7636,2952.0,2950.6,0.97765287]
[1731025293435,0.7636,2952.0,2950.6,0.90990018]
[1731025293585,0.7636,2952.0,2950.7,0.5412554]
[1731025293783,0.7636,2952.0,2950.8,0.52738508]
[1731025294125,2.5657,2953.4,2951.1,0.01]
[1731025294331,2.5657,2953.4,2951.3,0.01]
[1731025294641,2.5657,2953.4,2951.5,0.01]
[1731025294792,2.5657,2953.4,2951.5,0.49296814]
[1731025295334,2.5657,2953.4,2951.1,0.49296814]
[1731025295496,0.55,2953.1,2951.1,0.48296814]
[1731025295687,2.3963,2953.0,2951.1,0.48296814]
[1731025295898,0.29463,2952.9,2951.2,0.06775491]
[1731025296099,3.29463,2952.9,2951.2,0.55072305]
[1731025296330,3.29463,2952.9,2951.3,0.48296814]
[1731025296490,3.0,2952.5,2950.1,0.01]
[1731025296685,2.9463,2952.6,2950.5,0.48296814]
[1731025296686,2.3963,2952.6,2950.5,0.48296814]
[1731025296927,0.7918,2952.7,2951.4,0.01]
[1731025297128,0.7918,2952.7,2951.9,0.01]
[1731025297433,0.7918,2952.7,2951.7,0.02]
[1731025297631,0.7918,2952.7,2951.8,0.93523352]
[1731025297788,0.7918,2952.7,2951.9,0.01]
[1731025297993,0.7918,2952.7,2951.8,0.93523352]
[1731025298292,0.7918,2952.7,2951.9,0.06773227]
[1731025298492,0.7918,2952.7,2951.9,0.50296814]
[1731025298713,0.7918,2952.7,2952.0,0.48296814]
[1731025299139,0.7918,2952.7,2951.9,0.01]
[1731025299433,0.7918,2952.7,2951.9,0.06772966]
[1731025299596,0.7918,2952.7,2951.9,0.02]
[1731025299933,0.7918,2952.7,2952.0,0.48296814]
[1731025300090,0.7918,2952.7,2952.0,0.49296814]
[1731025300294,0.7918,2952.7,2951.8,0.45226538]
[1731025300717,0.7918,2952.7,2951.9,0.06772978]
[1731025300927,0.7918,2952.7,2952.2,0.01]
[1731025301129,0.8172,2953.6,2952.3,0.4855848]
[1731025301349,0.8172,2953.6,2952.3,0.4755848]
[1731025301501,0.8172,2953.6,2952.0,0.4855848]
[1731025302051,0.8172,2953.6,2952.0,0.4755848]
[1731025302622,0.8172,2953.6,2951.4,0.01]
[1731025302821,0.752,2953.4,2951.6,0.4855848]
[1731025303047,0.752,2953.2,2951.9,0.01]
[1731025303240,0.752,2953.2,2951.9,0.07772704]
[1731025303405,0.752,2953.2,2952.0,0.4755848]
[1731025303613,0.752,2953.2,2952.3,0.02]
[1731025303924,0.752,2953.2,2952.4,0.4755848]
[1731025304098,0.702,2953.2,2952.1,0.01]
[1731025304306,0.702,2953.2,2952.1,0.4855848]
[1731025304931,0.702,2953.2,2952.1,0.4755848]
[1731025305306,0.702,2953.2,2951.9,0.01]
[1731025305819,0.702,2953.2,2951.9,0.57498485]
[1731025306144,0.702,2953.2,2952.0,0.49725147]
[1731025306446,0.702,2953.2,2951.5,0.8106]
[1731025306904,0.702,2953.2,2951.2,0.01]
[1731025307104,0.702,2953.2,2951.3,0.89115018]
[1731025307756,0.7732,2953.0,2951.0,0.01]
[1731025307938,0.7732,2953.0,2949.8,1.34702289]
[1731025307939,0.7732,2952.6,2950.5,0.7729]
[1731025308135,0.7732,2952.4,2950.6,0.4398848]
[1731025308455,0.7732,2952.4,2950.7,0.46930628]
[1731025308608,0.7732,2952.4,2951.1,0.01]
[1731025308940,0.7732,2952.4,2951.2,0.4398848]
[1731025309104,0.7642,2952.3,2951.2,0.4398848]
[1731025309307,0.7642,2952.3,2950.5,0.7829]
[1731025309958,0.7642,2952.3,2950.1,4.50265377]
[1731025309959,0.7807,2952.0,2950.1,0.8108]
[1731025310122,1.16318,2951.9,2950.4,0.01]
[1731025311137,0.8134,2951.8,2950.1,0.8108]
[1731025311519,0.8134,2951.8,2950.1,0.8208]
[1731025311749,0.8134,2951.8,2950.1,0.8108]
[1731025311953,0.8134,2951.8,2950.2,0.01]
[1731025312827,0.8134,2951.8,2950.2,0.07777285]
[1731025313086,1.232988,2951.8,2950.4,0.01]
[1731025313348,0.8134,2951.8,2950.4,0.01]
[1731025313513,0.8134,2951.8,2950.6,0.01]
[1731025313717,0.8134,2951.8,2950.4,0.01]
[1731025313912,0.8134,2951.8,2950.1,0.8208]
[1731025314458,0.38248,2951.9,2949.4,0.8221]
[1731025314459,3.7716,2951.3,2949.4,0.8221]
[1731025314656,0.7716,2951.1,2949.4,0.8221]
[1731025314865,0.7716,2951.1,2949.5,0.06779053]
[1731025315046,0.7716,2951.1,2950.1,0.8221]
[1731025315557,0.7716,2951.1,2949.5,0.41974314]
[1731025315740,0.7716,2951.1,2949.2,0.8321]
[1731025316050,0.8074,2950.8,2949.2,0.8321]
[1731025316253,0.8074,2950.8,2949.3,0.06779753]
[1731025316456,0.8074,2950.8,2949.2,0.01]
[1731025316837,0.8074,2950.8,2949.0,0.42974314]
[1731025317039,0.33452,2950.7,2949.2,0.01]
[1731025317243,0.8074,2950.8,2949.4,0.8424]
[1731025317441,0.8074,2950.8,2949.4,1.31214314]
[1731025317691,0.8074,2950.8,2949.4,1.30214314]
[1731025317842,0.8074,2950.8,2949.4,0.8324]
[1731025318042,0.8074,2950.8,2949.0,1.31214314]
[1731025318286,0.8025,2950.6,2949.0,0.47974314]
[1731025318776,2.5486,2950.4,2948.6,0.8424]
[1731025318964,0.8025,2950.3,2948.6,0.8424]
[1731025319166,0.8025,2950.3,2948.7,0.06781262]
[1731025319678,0.8025,2950.3,2948.7,0.53755576]
[1731025319897,0.8025,2950.3,2948.8,0.46974314]
[1731025320053,0.8025,2950.3,2949.0,0.01]
[1731025320260,1.13761,2950.3,2949.0,0.01]
[1731025320598,0.8025,2951.4,2949.7,0.8424]
[1731025320769,0.8025,2951.4,2950.2,0.01]
[1731025321086,0.8025,2951.4,2950.3,0.7809]
[1731025321381,0.8025,2951.4,2950.0,0.01]
[1731025321543,0.8025,2951.4,2949.7,0.50224314]
[1731025321743,2.4286,2951.3,2949.7,0.49224314]
[1731025321942,0.7603,2950.8,2948.9,0.01]
[1731025322187,0.7603,2950.6,2948.9,0.01]
[1731025322346,0.7603,2950.6,2948.9,0.57004726]
[1731025322685,0.7603,2950.6,2948.9,0.01]
[1731025322870,0.7603,2950.6,2949.3,0.01]
[1731025323185,0.7603,2950.6,2949.6,0.01]
[1731025323485,0.7603,2950.6,2949.7,0.49224314]
[1731025323673,0.7603,2950.6,2949.7,0.50224314]
[1731025323876,0.7603,2950.6,2949.8,0.06778276]
[1731025324080,0.7603,2950.6,2949.9,0.49224314]
[1731025324271,0.7968,2952.0,2950.2,0.01]
[1731025324476,0.7968,2952.0,2950.2,0.07777567]
[1731025324686,0.7968,2952.0,2950.2,0.01]
[1731025325194,0.7968,2951.8,2950.2,0.01]
[1731025325980,0.7968,2951.8,2950.2,0.50224314]
[1731025326288,0.7968,2951.8,2950.2,0.01]
[1731025326470,2.3653,2951.7,2949.8,0.01]
[1731025326671,0.7813,2951.4,2949.8,0.50148969]
[1731025326874,0.31621,2951.6,2949.4,0.01]
[1731025326875,0.7813,2951.0,2949.4,0.01]
[1731025327648,0.7813,2951.0,2949.2,0.01]
[1731025327848,0.7813,2951.0,2949.1,0.49224314]
[1731025328140,0.8258,2950.6,2948.8,0.01]
[1731025328292,0.8258,2950.6,2948.9,0.49224314]
[1731025328450,0.8258,2950.6,2949.0,0.02]
[1731025328649,0.8258,2950.6,2949.2,0.01]
[1731025328851,0.7795,2950.4,2949.2,0.01]
[1731025329394,0.7795,2950.4,2949.3,0.49224314]
[1731025329697,0.7795,2950.4,2949.4,0.06780087]
[1731025329903,0.7795,2950.4,2949.0,0.01]
[1731025330084,0.31911,2950.5,2948.6,0.02]
[1731025330085,0.8049,2950.2,2948.6,0.02]
[1731025330776,0.8049,2950.2,2948.6,0.51224314]
[1731025331099,0.8049,2950.2,2948.7,0.49224314]
[1731025331909,2.5734,2950.1,2948.4,0.01]
[1731025332088,0.7663,2949.8,2948.4,0.01]
[1731025332416,0.7663,2949.8,2948.4,0.50224314]
[1731025332582,0.7663,2949.8,2948.5,0.06781453]
[1731025332783,0.77,2949.6,2948.5,0.06781453]
[1731025332979,0.77,2949.6,2948.6,0.50224314]
[1731025333209,0.77,2949.6,2948.7,0.06781091]
[1731025333925,0.77,2949.6,2948.5,0.49224314]
[1731025334221,0.7977,2949.4,2948.3,0.01]
[1731025335013,0.7977,2949.4,2948.1,0.4614098]
[1731025335180,0.7977,2949.4,2948.2,0.0678255]
[1731025335379,0.7977,2949.4,2947.7,0.492243]
[1731025335380,3.2736,2949.3,2947.7,0.492243]
[1731025335584,3.2736,2949.3,2947.3,0.01]
[1731025335585,0.7632,2949.2,2947.3,0.01]
[1731025335884,0.7632,2949.2,2947.1,1.34498617]
[1731025335885,0.8052,2948.6,2947.1,1.34498617]
[1731025336080,0.8052,2948.4,2947.1,1.34498617]
[1731025336396,0.8052,2947.9,2946.1,1.344987]
[1731025336589,0.8052,2947.6,2946.0,3.31665241]
[1731025337014,4.50265377,2947.7,2945.6,0.01]
[1731025337015,0.8052,2947.4,2945.6,0.01]
[1731025337231,0.8293,2946.6,2944.9,1.7566527]
[1731025337395,0.8293,2946.1,2944.4,0.01]
[1731025338395,0.7851,2945.9,2944.1,0.01]
[1731025338599,0.7851,2945.9,2943.9,0.5011858]
[1731025338784,0.7851,2945.9,2944.2,0.01]
[1731025339287,0.7851,2945.6,2943.9,0.4911858]
[1731025339487,0.7851,2945.6,2943.9,0.1377561]
[1731025339714,0.7851,2945.6,2944.2,0.01]
[1731025339984,0.7851,2945.6,2944.2,0.07791541]
[1731025340187,4.50265377,2947.3,2945.0,0.01]
[1731025340426,4.50265377,2947.3,2944.5,0.01]
[1731025340427,1.24045707,2947.2,2945.7,0.01]
[1731025340584,1.24045707,2947.2,2945.8,0.01]
[1731025340790,0.7851,2947.2,2946.0,0.01]
[1731025340985,0.7851,2947.2,2945.5,0.02]
[1731025341294,0.7851,2947.2,2946.0,0.01]
[1731025341503,0.7851,2947.2,2945.9,0.01]
[1731025341894,0.7851,2947.2,2945.8,0.01]
[1731025342088,0.7851,2947.2,2945.2,3.0]
[1731025342089,0.7851,2947.2,2946.0,0.02]
[1731025342288,0.7851,2947.2,2946.2,0.01]
[1731025342590,0.7851,2947.2,2946.3,0.01]
[1731025343334,0.7851,2947.2,2946.0,0.02]
[1731025343496,0.7851,2947.2,2946.3,0.01]
[1731025343692,0.7851,2947.2,2945.7,0.01]
[1731025343917,0.7851,2947.2,2945.3,1.15151417]
[1731025343918,0.55,2946.8,2945.3,0.75026538]
[1731025344118,0.55,2946.8,2945.0,0.01]
[1731025344321,0.55,2946.6,2944.9,0.02]
[1731025344629,3.1417,2946.5,2944.6,0.01]
[1731025344832,0.55,2945.9,2944.6,0.01]
[1731025345038,0.55,2945.7,2944.1,0.01]
[1731025345517,0.7843,2945.8,2944.1,0.01]
[1731025345825,0.55,2945.7,2944.1,0.02]
[1731025346132,2.9074,2945.7,2944.2,0.01]
[1731025346329,2.9074,2945.7,2944.3,0.01]
[1731025346330,0.36917,2945.6,2944.3,0.01]
[1731025346487,0.36917,2945.6,2944.4,0.06791542]
[1731025346956,0.36917,2945.6,2944.3,0.01]
[1731025347451,0.36917,2945.6,2944.1,0.01]
[1731025347661,0.7843,2945.5,2943.9,0.1377561]
[1731025347868,3.1919,2945.1,2943.9,0.1377561]
[1731025348192,3.1919,2944.6,2943.9,0.1377561]
[1731025348317,3.1919,2944.6,2942.7,0.7907]
[1731025348318,0.5473714,2944.5,2943.0,0.01]
[1731025348654,0.76945538,2944.5,2943.3,0.01]
[1731025348805,0.7843,2944.6,2943.0,0.01]
[1731025349010,0.7843,2944.6,2942.7,0.7807]
[1731025349011,0.7843,2944.6,2942.7,0.8007]
[1731025349239,0.7843,2944.6,2942.7,0.02]
[1731025349419,0.7843,2944.6,2942.2,0.7807]
[1731025349420,0.03,2944.5,2942.2,0.7807]
[1731025349625,0.55869538,2944.5,2942.3,0.52833538]
[1731025349917,0.7548,2944.4,2942.3,0.52833538]
[1731025350106,0.7548,2944.2,2942.3,0.52833538]
[1731025350311,0.55,2943.9,2942.4,0.0679543]
[1731025350548,0.55,2943.9,2941.8,0.752]
[1731025350549,0.7548,2943.7,2941.8,0.752]
[1731025350718,0.58,2943.6,2941.8,0.752]
[1731025351158,0.55,2943.4,2941.2,0.752]
[1731025351312,1.3264,2943.0,2941.3,0.5934359]
[1731025351508,1.3264,2943.0,2941.4,0.06798571]
[1731025351509,0.03,2942.9,2941.4,0.06798571]
[1731025351747,0.03,2942.9,2941.1,0.06798572]
[1731025352352,0.03,2942.9,2940.5,0.7777]
[1731025352563,0.55,2942.7,2940.5,0.7777]
[1731025352715,0.03,2942.6,2940.5,0.7654561]
[1731025352916,0.7764,2942.5,2940.5,0.7654561]
[1731025353117,0.58,2942.4,2940.5,0.7654561]